bitfinex/quotes_SOLUSD_20250219
["timestamp","ask_amount","ask_price","bid_price","bid_amount"]
[1739997780526,12.5134,168.91,168.87,36.96571212]
[1739997780693,137.3,168.92,168.87,36.96571212]
[1739997780895,3.53524248,168.88,168.87,36.96571212]
[1739997781116,3.53524248,168.88,168.86,21.0864268]
[1739997781633,3.53524248,168.88,168.85,6.002]
[1739997781943,18.68266928,168.88,168.85,6.002]
[1739997782237,18.68266928,168.88,168.85,0.063]
[1739997782530,18.68266928,168.88,168.85,15.2104268]
[1739997782531,3.53524248,168.88,168.85,15.2104268]
[1739997782694,3.53524248,168.87,168.85,15.2104268]
[1739997782899,3.53524248,168.87,168.85,3.73580804]
[1739997782900,26.13670401,168.87,168.85,3.73580804]
[1739997783119,26.13670401,168.87,168.85,24.28352386]
[1739997783418,26.13670401,168.87,168.86,42.93317272]
[1739997783626,3.53524248,168.87,168.86,42.93317272]
[1739997784235,7.95360948,168.87,168.86,42.93317272]
[1739997784407,7.95360948,168.87,168.86,48.85517272]
[1739997785007,7.95360948,168.87,168.86,42.93317272]
[1739997785797,4.418367,168.87,168.86,42.93317272]
[1739997785997,24.28352386,168.93,168.86,42.93317272]
[1739997786192,24.28352386,168.93,168.87,24.28352386]
[1739997786433,24.28352386,168.92,168.86,24.28352386]
[1739997786636,24.28352386,168.91,168.88,20.0]
[1739997787242,24.28352386,168.92,168.88,20.0]
[1739997789649,24.28352386,168.92,168.88,25.9212]
[1739997791642,24.28352386,168.93,168.89,18.64964886]
[1739997791851,107.28352386,168.94,168.89,18.64964886]
[1739997792656,83.0,168.94,168.89,42.93317272]
[1739997793037,83.0,168.94,168.91,18.64964886]
[1739997793249,24.28352386,168.96,168.91,24.56974886]
[1739997794554,24.28352386,168.96,168.9,20.0]
[1739997794739,24.28352386,168.96,168.9,44.28352386]
[1739997795661,24.28352386,168.96,168.91,5.9203]
[1739997795957,24.28352386,168.95,168.91,5.9203]
[1739997797658,24.28352386,168.93,168.9,20.0]
[1739997798240,5.9182,168.97,168.9,25.9206]
[1739997798241,24.28352386,168.94,168.9,25.9206]
[1739997798758,24.28352386,168.94,168.9,5.9206]
[1739997799470,24.28352386,168.94,168.88,24.28352386]
[1739997799758,24.28352386,168.94,168.89,5.921]
[1739997799941,24.28352386,168.93,168.88,5.9212]
[1739997800555,24.28352386,168.92,168.88,5.9212]
[1739997800951,24.28352386,168.93,168.88,5.9212]
[1739997802664,24.28352386,168.92,168.88,5.9212]
[1739997803766,24.28352386,168.93,168.87,30.20522386]
[1739997804139,24.28352386,168.92,168.87,5.9217]
[1739997804858,15.17465419,168.92,168.87,21.09635419]
[1739997805068,15.17465419,168.92,168.87,5.9217]
[1739997805441,15.17465419,168.92,168.87,21.09635419]
[1739997805969,15.17465419,168.93,168.87,21.09635419]
[1739997807040,15.17465419,168.92,168.87,5.9217]
[1739997807360,15.17465419,168.93,168.87,21.09635419]
[1739997808760,15.17465419,168.9,168.87,5.9217]
[1739997808939,15.17465419,168.9,168.85,0.03]
[1739997809141,15.17465419,168.9,168.85,5.9524]
[1739997809552,83.0,168.92,168.85,5.9524]
[1739997809553,15.17465419,168.89,168.85,5.9524]
[1739997810965,15.17465419,168.89,168.85,0.03]
[1739997813166,15.17465419,168.89,168.83,15.17465419]
[1739997813474,88.9203,168.91,168.82,1.5884]
[1739997813475,15.17465419,168.86,168.82,1.5884]
[1739997813657,15.17465419,168.86,168.82,0.063]
[1739997813843,15.17465419,168.85,168.82,0.063]
[1739997814045,15.17465419,168.85,168.82,20.063]
[1739997814447,15.17465419,168.85,168.82,0.063]
[1739997814683,15.17465419,168.85,168.82,5.9864]
[1739997815247,15.17465419,168.85,168.82,0.063]
[1739997815482,15.17465419,168.84,168.82,0.063]
[1739997820356,15.17465419,168.87,168.82,0.063]
[1739997820569,98.17465419,168.87,168.82,15.23765419]
[1739997820773,98.17465419,168.87,168.82,0.063]
[1739997820959,15.17465419,168.86,168.82,0.063]
[1739997821874,15.17465419,168.83,168.82,0.063]
[1739997822262,18.70104893,168.85,168.82,0.063]
[1739997823051,15.17465419,168.84,168.82,0.063]
[1739997823253,18.70104893,168.85,168.82,0.063]
[1739997823653,3.52639474,168.84,168.82,0.063]
[1739997824192,3.52639474,168.84,168.8,5.88243865]
[1739997824492,3.52639474,168.84,168.79,15.17465419]
[1739997824692,15.17465419,168.82,168.78,0.063]
[1739997824852,15.17465419,168.81,168.78,0.063]
[1739997826581,3.52639474,168.8,168.78,0.063]
[1739997828267,15.17465419,168.79,168.78,0.063]
[1739997828466,15.17465419,168.8,168.78,0.063]
[1739997829181,83.0,168.82,168.79,15.17465419]
[1739997829556,83.0,168.82,168.78,15.23765419]
[1739997830076,83.0,168.82,168.79,5.9245]
[1739997830975,15.17465419,168.81,168.78,0.063]
[1739997832155,3.53039378,168.8,168.78,0.063]
[1739997832559,18.70504797,168.8,168.78,0.063]
[1739997833480,3.53039378,168.79,168.78,0.063]
[1739997835378,15.17465419,168.8,168.78,0.063]
[1739997836174,235.47465419,168.79,168.78,0.063]
[1739997836375,254.12430305,168.79,168.78,0.063]
[1739997836679,235.47465419,168.79,168.78,0.063]
[1739997838095,244.92335864,168.79,168.78,0.063]
[1739997838272,263.43833468,168.79,168.78,0.063]
[1739997838588,263.43833468,168.79,168.77,0.02145221]
[1739997838796,15.17465419,168.78,168.77,0.02145221]
[1739997838964,181.66910305,168.78,168.77,0.02145221]
[1739997839164,185.1933075,168.78,168.77,0.02145221]
[1739997841286,175.7909964,168.78,168.77,0.02145221]
[1739997841476,169.8661964,168.78,168.77,0.02145221]
[1739997841672,12.77154221,168.78,168.77,0.02145221]
[1739997842764,27.9461964,168.78,168.77,0.02145221]
[1739997842965,12.77154221,168.78,168.77,0.02145221]
[1739997843195,98.17465419,168.81,168.77,0.02145221]
[1739997843453,83.0,168.81,168.76,15.17465419]
[1739997844268,98.17465419,168.81,168.75,21.10055419]
[1739997844768,15.17465419,168.8,168.75,5.9259]
[1739997845292,98.17465419,168.81,168.75,21.10055419]
[1739997845872,15.17465419,168.8,168.75,5.9259]
[1739997846078,15.17465419,168.78,168.76,0.03]
[1739997847380,98.17465419,168.8,168.76,0.03]
[1739997847582,83.0,168.8,168.76,0.03]
[1739997848080,83.0,168.8,168.76,15.20465419]
[1739997849587,98.17465419,168.8,168.76,0.03]
[1739997851382,98.17465419,168.8,168.76,5.9555]
[1739997851787,0.063,168.81,168.77,15.17465419]
[1739997851990,0.063,168.81,168.78,15.17465419]
[1739997853096,0.063,168.81,168.77,15.17465419]
[1739997853584,0.063,168.81,168.78,5.9248]
[1739997854402,0.063,168.81,168.76,21.13005419]
[1739997854574,15.23765419,168.81,168.76,5.9554]
[1739997854878,15.17465419,168.79,168.76,0.03]
[1739997855078,15.17465419,168.78,168.76,0.03]
[1739997856202,15.17465419,168.77,168.76,0.03]
[1739997856401,18.70492857,168.77,168.76,0.03]
[1739997858493,24.63012857,168.77,168.76,0.03]
[1739997859288,161.93012857,168.77,168.76,0.03]
[1739997859712,166.55012857,168.77,168.76,0.03]
[1739997860504,175.79746633,168.77,168.76,0.03]
[1739997860805,175.79746633,168.77,168.73,0.063]
[1739997860992,15.17465419,168.74,168.73,0.063]
[1739997862302,15.17465419,168.75,168.73,0.063]
[1739997862605,3.53027438,168.74,168.73,0.063]
[1739997863308,18.70492857,168.74,168.73,0.063]
[1739997864886,24.63112857,168.74,168.73,0.063]
[1739997865689,18.70492857,168.74,168.73,0.063]
[1739997866418,27.95826919,168.74,168.73,0.063]
[1739997867203,12.783615,168.74,168.73,0.063]
[1739997867793,3.53027438,168.74,168.73,0.063]
[1739997868621,18.70492857,168.74,168.73,0.063]
[1739997874021,27.95826919,168.74,168.69,12.4999]
[1739997874206,15.17465419,168.72,168.69,12.4999]
[1739997875522,3.53027438,168.71,168.69,12.4999]
[1739997877419,15.17465419,168.73,168.69,12.4999]
[1739997877725,15.17465419,168.74,168.69,12.4999]
[1739997878424,3.52790304,168.73,168.69,12.4999]
[1739997879125,3.52790304,168.73,168.69,27.67455419]
[1739997879323,3.52790304,168.73,168.71,15.17465419]
[1739997879500,92.25334062,168.75,168.7,15.17465419]
[1739997879501,3.52790304,168.72,168.7,15.17465419]
[1739997880020,3.52790304,168.72,168.71,5.9273]
[1739997880614,3.52790304,168.74,168.71,5.9273]
[1739997881204,15.17465419,168.73,168.7,5.9275]
[1739997881414,15.17465419,168.73,168.69,12.4998]
[1739997882036,3.52790304,168.72,168.69,12.4998]
[1739997883034,3.52790304,168.72,168.71,0.03]
[1739997883230,15.17465419,168.73,168.71,0.03]
[1739997883444,24.42799481,168.74,168.71,0.03]
[1739997884138,9.25334062,168.74,168.71,0.03]
[1739997884326,9.25334062,168.74,168.71,15.20465419]
[1739997884527,3.52975196,168.73,168.71,15.20465419]
[1739997885239,3.52975196,168.73,168.71,0.03]
[1739997885837,9.25334062,168.74,168.71,0.03]
[1739997886043,24.42799481,168.75,168.71,0.03]
[1739997886337,9.25334062,168.75,168.71,0.03]
[1739997887627,3.53323816,168.74,168.71,5.9573]
[1739997888546,3.53323816,168.73,168.71,5.9573]
[1739997889649,9.25334062,168.75,168.71,5.9573]
[1739997891053,3.53625065,168.74,168.71,5.9573]
[1739997891742,3.53625065,168.74,168.71,0.03]
[1739997892145,3.53625065,168.73,168.71,0.03]
[1739997893427,9.25334062,168.75,168.71,0.03]
[1739997894543,3.53755098,168.74,168.71,0.03]
[1739997894747,0.063,168.73,168.71,0.03]
[1739997896233,3.53755098,168.72,168.71,0.03]
[1739997901536,13.2687808,168.72,168.71,0.03]
[1739997902046,3.53755098,168.72,168.71,0.03]
[1739997902860,22.52212142,168.72,168.71,0.03]
[1739997903050,67.3739407,168.72,168.71,0.03]
[1739997903770,67.3739407,168.72,168.68,0.03]
[1739997903771,47.13294886,168.69,168.68,0.03]
[1739997903962,19.64964886,168.68,168.67,0.033]
[1739997904146,29.38087868,168.68,168.67,0.033]
[1739997904761,28.38087868,168.68,168.67,0.033]
[1739997905366,35.30917868,168.68,168.67,0.033]
[1739997905565,34.30917868,168.68,168.67,0.033]
[1739997905868,37.84672966,168.68,168.67,0.033]
[1739997906469,19.1970808,168.68,168.57,17.23472982]
[1739997906654,9.73122982,168.66,168.6,9.79422982]
[1739997907173,3.53755098,168.68,168.63,9.73122982]
[1739997907353,3.53755098,168.68,168.64,9.73122982]
[1739997907551,7.63413543,168.68,168.64,9.73122982]
[1739997907873,7.63413543,168.68,168.64,1.6023]
[1739997908258,7.63413543,168.68,168.64,11.33352982]
[1739997908458,3.53755098,168.67,168.64,1.6023]
[1739997908768,3.53755098,168.67,168.6,99.41264886]
[1739997908769,15.21665788,168.65,168.6,5.9941]
[1739997908973,15.21665788,168.64,168.6,5.9941]
[1739997909166,15.21665788,168.64,168.6,0.063]
[1739997909359,15.21665788,168.62,168.6,0.063]
[1739997911184,3.53755098,168.61,168.6,0.063]
[1739997912454,18.75420886,168.61,168.6,0.063]
[1739997912858,24.68500886,168.61,168.6,0.063]
[1739997913381,29.28500886,168.61,168.6,0.063]
[1739997913771,18.64964886,168.59,168.54,0.03]
[1739997913956,15.21665788,168.55,168.54,0.03]
[1739997914276,19.81665788,168.55,168.54,0.03]
[1739997914576,25.74955788,168.55,168.54,0.03]
[1739997915085,45.39920674,168.55,168.54,0.03]
[1739997915267,19.64964886,168.53,168.43,1.5516]
[1739997915455,19.64964886,168.53,168.41,15.21665788]
[1739997915456,15.21665788,168.46,168.42,5.9374]
[1739997915881,15.21665788,168.47,168.42,5.9374]
[1739997916277,15.21665788,168.46,168.42,5.9374]
[1739997916485,15.21665788,168.43,168.34,2.4493011]
[1739997916658,15.21665788,168.46,168.4,15.21665788]
[1739997916978,15.21665788,168.45,168.39,15.21665788]
[1739997917278,15.21665788,168.43,168.36,15.21665788]
[1739997917863,15.21665788,168.41,168.35,15.21665788]
[1739997918187,15.21665788,168.38,168.32,7.8382]
[1739997918364,5.62,168.41,168.37,0.03]
[1739997918574,18.64964886,168.4,168.37,0.03]
[1739997919289,15.21665788,168.38,168.37,0.03]
[1739997921377,15.21665788,168.39,168.37,0.03]
[1739997921877,15.21665788,168.38,168.37,0.03]
[1739997922488,15.21665788,168.38,168.32,13.7792]
[1739997922677,15.21665788,168.38,168.32,28.99585788]
[1739997923493,15.21665788,168.39,168.33,15.21665788]
[1739997923791,15.21665788,168.39,168.33,21.15705788]
[1739997926493,15.21665788,168.35,168.27,14.8567]
[1739997926682,15.21665788,168.34,168.27,30.07335788]
[1739997926880,15.21665788,168.34,168.3,20.0]
[1739997927493,15.21665788,168.34,168.28,5.9424]
[1739997928207,15.21665788,168.35,168.29,15.21665788]
[1739997928383,15.21665788,168.32,168.23,8.2911]
[1739997928573,15.21665788,168.3,168.24,21.16045788]
[1739997928773,15.21665788,168.28,168.24,5.9438]
[1739997929007,15.21665788,168.29,168.24,5.9438]
[1739997929297,18.64964886,168.33,168.24,21.16045788]
[1739997929298,15.21665788,168.3,168.24,21.16045788]
[1739997929502,15.21665788,168.32,168.26,15.21665788]
[1739997929674,15.21665788,168.33,168.27,15.21665788]
[1739997930299,15.21665788,168.32,168.26,15.21665788]
[1739997930999,15.21665788,168.33,168.27,15.24665788]
[1739997931195,15.21665788,168.33,168.28,15.21665788]
[1739997931402,15.21665788,168.34,168.28,15.21665788]
[1739997931601,15.21665788,168.37,168.31,15.21665788]
[1739997931907,4.6,168.37,168.32,15.21665788]
[1739997932275,4.6,168.37,168.31,15.21665788]
[1739997932276,19.81665788,168.37,168.31,15.21665788]
[1739997932902,27.54110646,168.41,168.33,15.21665788]
[1739997933212,15.21665788,168.39,168.33,15.21665788]
[1739997933503,15.21665788,168.38,168.33,15.21665788]
[1739997933712,15.21665788,168.37,168.32,15.21665788]
[1739997933919,15.21665788,168.35,168.29,15.21665788]
[1739997934101,15.21665788,168.36,168.3,15.21665788]
[1739997934284,4.6,168.4,168.31,15.21665788]
[1739997934586,15.21665788,168.38,168.32,21.15765788]
[1739997934904,15.21665788,168.37,168.32,5.941]
[1739997935203,19.81665788,168.4,168.34,15.21665788]
[1739997935386,15.21665788,168.4,168.34,15.21665788]
[1739997935887,19.81665788,168.41,168.35,15.21665788]
[1739997936383,25.75455788,168.41,168.35,15.21665788]
[1739997937324,15.21665788,168.4,168.34,15.21665788]
[1739997937502,15.21665788,168.4,168.3,95.554]
[1739997937503,15.21665788,168.36,168.3,80.7]
[1739997937714,18.64964886,168.39,168.27,6.3382]
[1739997937894,15.21665788,168.35,168.29,15.21665788]
[1739997938310,15.21665788,168.36,168.3,15.21665788]
[1739997938912,15.21665788,168.36,168.3,21.15805788]
[1739997939815,15.21665788,168.37,168.31,15.21665788]
[1739997940313,15.21665788,168.36,168.3,21.15805788]
[1739997940793,15.21665788,168.37,168.31,15.21665788]
[1739997941002,15.21665788,168.38,168.32,15.21665788]
[1739997941396,15.21665788,168.37,168.31,15.21665788]
[1739997942100,15.21665788,168.37,168.31,16.80965788]
[1739997942299,104.33825788,168.43,168.36,15.21665788]
[1739997942505,104.33825788,168.43,168.37,15.21665788]
[1739997942506,83.0,168.42,168.37,15.21665788]
[1739997943621,0.063,168.38,168.37,15.21665788]
[1739997943926,0.063,168.38,168.37,21.15595788]
[1739997945333,0.063,168.38,168.37,15.21665788]
[1739997945501,0.063,168.38,168.36,15.21665788]
[1739997946730,0.063,168.38,168.36,21.15625788]
[1739997952743,0.063,168.38,168.37,15.21665788]
[1739997953237,0.063,168.38,168.37,33.86630674]
[1739997953822,0.063,168.38,168.37,15.21665788]
[1739997954539,0.063,168.38,168.37,21.15595788]
[1739997958643,83.0,168.45,168.4,20.0]
[1739997958842,4.6,168.46,168.42,15.21665788]
[1739997959011,235.51665788,168.48,168.42,15.21665788]
[1739997959212,83.0,168.5,168.46,15.21665788]
[1739997959420,84.5442,168.51,168.46,15.21665788]
[1739997959613,84.5442,168.51,168.44,15.21665788]
[1739997959858,15.21665788,168.5,168.44,15.21665788]
[1739997960248,15.21665788,168.47,168.41,95.91665788]
[1739997960442,15.21665788,168.47,168.37,23.8309334]
[1739997960443,15.21665788,168.43,168.37,15.21665788]
[1739997960742,83.0,168.43,168.36,21.15625788]
[1739997961037,15.21665788,168.42,168.36,21.15625788]
[1739997961222,83.0,168.43,168.37,15.21665788]
[1739997961423,83.0,168.43,168.38,15.21665788]
[1739997961653,3.53522967,168.42,168.38,15.21665788]
[1739997961839,3.53522967,168.42,168.4,15.21665788]
[1739997962040,3.53522967,168.42,168.41,15.21665788]
[1739997962629,3.53522967,168.42,168.41,21.15445788]
[1739997963030,3.53522967,168.42,168.41,20.0]
[1739997963663,3.53522967,168.42,168.41,15.21665788]
[1739997964735,3.53522967,168.46,168.41,21.15445788]
[1739997964936,3.53522967,168.46,168.43,15.21665788]
[1739997965138,3.53522967,168.46,168.41,5.9378]
[1739997965139,3.53522967,168.46,168.41,21.15445788]
[1739997965452,15.21665788,168.45,168.4,25.9381]
[1739997965645,3.53522967,168.46,168.4,41.15475788]
[1739997965850,3.53522967,168.46,168.43,15.21665788]
[1739997966357,3.53522967,168.44,168.43,15.21665788]
[1739997966957,3.53522967,168.44,168.43,21.15375788]
[1739997967660,3.53522967,168.44,168.43,5.9371]
[1739997967838,3.53522967,168.44,168.4,25.9379]
[1739997968047,18.75188755,168.44,168.4,5.9379]
[1739997968243,3.53522967,168.44,168.4,5.9379]
[1739997969872,18.75188755,168.44,168.38,21.18535788]
[1739997970055,15.21665788,168.44,168.38,21.18535788]
[1739997970235,15.21665788,168.44,168.38,5.9687]
[1739997970637,15.21665788,168.43,168.38,0.03]
[1739997971039,6.2008,168.44,168.39,15.21665788]
[1739997971677,3.53522967,168.42,168.41,15.21665788]
[1739997971881,3.53522967,168.42,168.4,15.21665788]
[1739997972452,3.53522967,168.42,168.38,21.18535788]
[1739997972667,15.21665788,168.44,168.38,21.18535788]
[1739997972872,15.21665788,168.45,168.38,21.18535788]
[1739997973583,15.21665788,168.45,168.39,15.21665788]
[1739997974162,3.53527193,168.44,168.39,15.21665788]
[1739997974976,3.53527193,168.44,168.4,5.9382]
[1739997975682,3.53527193,168.43,168.4,5.9382]
[1739997976578,3.53527193,168.43,168.39,21.15505788]
[1739997976770,3.53527193,168.42,168.39,5.9384]
[1739997977278,3.53527193,168.42,168.39,21.15505788]
[1739997977484,3.53527193,168.42,168.38,0.03]
[1739997977684,18.75192981,168.42,168.38,0.03]
[1739997977859,3.53527193,168.41,168.38,0.03]
[1739997978880,3.53527193,168.4,168.38,0.03]
[1739997979380,3.53527193,168.4,168.38,15.24665788]
[1739997980269,3.53527193,168.39,168.38,15.24665788]
[1739997980785,3.53527193,168.39,168.38,0.03]
[1739997981210,3.53527193,168.39,168.38,15.24665788]
[1739997981496,83.0,168.44,168.38,21.18555788]
[1739997981497,3.53527193,168.43,168.38,21.18555788]
[1739997981799,3.53527193,168.43,168.38,0.03]
[1739997982404,18.75192981,168.43,168.38,0.03]
[1739997982589,3.53527193,168.42,168.38,0.03]
[1739997983407,3.53527193,168.42,168.38,15.24665788]
[1739997983703,3.53527193,168.41,168.38,0.03]
[1739997984503,18.75192981,168.41,168.38,0.03]
[1739997984886,3.53527193,168.4,168.38,0.03]
[1739997986188,3.53527193,168.39,168.38,0.03]
[1739997986791,3.53527193,168.39,168.38,15.24665788]
[1739997987605,3.53527193,168.39,168.38,0.03]
[1739997988014,3.53527193,168.39,168.38,21.18555788]
[1739997988505,3.53527193,168.39,168.38,41.18555788]
[1739997989079,7.193e-05,168.39,168.38,120.53520674]
[1739997989286,7.193e-05,168.39,168.38,142.25626462]
[1739997989703,0.063,168.44,168.41,20.0]
[1739997989918,0.063,168.44,168.41,35.21665788]
[1739997990085,0.063,168.44,168.41,20.0]
[1739997990506,0.063,168.44,168.4,15.21665788]
[1739997991024,0.063,168.44,168.4,21.15475788]
[1739997992004,15.21665788,168.43,168.38,0.03]
[1739997992304,15.21665788,168.41,168.38,0.03]
[1739997992681,15.21665788,168.4,168.38,0.03]
[1739997993303,98.21665788,168.41,168.38,0.03]
[1739997995018,83.0,168.41,168.38,0.03]
[1739997995311,83.0,168.41,168.38,15.24665788]
[1739997995508,157.17965788,168.44,168.4,15.21665788]
[1739997995509,4.663,168.44,168.4,15.21665788]
[1739997995714,0.063,168.44,168.4,15.21665788]
[1739997996903,0.063,168.44,168.39,41.15515788]
[1739997997327,0.063,168.44,168.4,15.21665788]
[1739997998527,0.063,168.44,168.4,21.15455788]
[1739997999339,0.063,168.44,168.4,5.9379]
[1739997999497,0.063,168.44,168.4,21.15455788]
[1739997999700,0.063,168.44,168.43,15.21665788]
[1739998000435,0.063,168.44,168.43,21.15375788]
[1739998000721,0.063,168.44,168.43,5.9371]
[1739998001096,0.063,168.44,168.43,21.15375788]
[1739998004813,0.063,168.44,168.43,101.85375788]
[1739998005226,0.0001,168.44,168.43,120.50340674]
[1739998005928,0.063,168.5,168.43,41.80340674]
[1739998006117,0.063,168.5,168.49,15.21665788]
[1739998006515,0.063,168.5,168.49,21.15165788]
[1739998007427,0.063,168.5,168.49,120.50130674]
[1739998007428,0.0001,168.5,168.49,120.50130674]
[1739998007601,0.0001,168.5,168.49,101.85165788]
[1739998013244,0.0001,168.5,168.49,120.50130674]
[1739998021042,0.0001,168.5,168.49,86.635]
[1739998021634,0.0001,168.5,168.47,21.15225788]
[1739998021841,0.0001,168.5,168.49,20.0]
[1739998022018,0.0001,168.5,168.46,80.7]
[1739998022217,15.21675788,168.5,168.46,86.6361]
[1739998022442,0.0001,168.5,168.46,86.6361]
[1739998024357,0.0001,168.5,168.46,101.85275788]
[1739998024937,0.0001,168.5,168.47,15.21665788]
[1739998025141,0.0001,168.5,168.46,86.6361]
[1739998025347,15.21675788,168.5,168.46,5.9361]
[1739998026154,0.0001,168.5,168.46,5.9361]
[1739998026657,15.21665788,168.49,168.44,5.9364]
[1739998027255,15.21665788,168.49,168.43,80.73]
[1739998027256,15.21665788,168.45,168.43,80.73]
[1739998027485,15.21665788,168.44,168.43,0.03]
[1739998028642,24.51760129,168.44,168.38,0.03]
[1739998028830,15.21665788,168.39,168.38,0.03]
[1739998030465,21.15515788,168.39,168.38,0.03]
[1739998033469,22.15515788,168.39,168.38,0.03]
[1739998034284,21.15515788,168.39,168.38,0.03]
[1739998036271,15.21665788,168.39,168.38,0.03]
[1739998036457,84.5945,168.4,168.38,0.03]
[1739998036658,15.21665788,168.39,168.38,0.03]
[1739998037360,98.21665788,168.39,168.38,0.03]
[1739998038458,104.15515788,168.39,168.38,0.03]
[1739998038657,21.15515788,168.39,168.38,0.03]
[1739998041097,22.15515788,168.39,168.38,0.03]
[1739998041484,21.15515788,168.39,168.38,0.03]
[1739998042167,22.15515788,168.39,168.38,0.03]
[1739998042591,25.12241977,168.39,168.38,0.03]
[1739998043095,24.12241977,168.39,168.38,0.03]
[1739998044682,25.12241977,168.39,168.38,0.03]
[1739998044885,24.12241977,168.39,168.38,0.03]
[1739998045702,21.15515788,168.39,168.38,0.03]
[1739998046704,25.75515788,168.39,168.38,0.03]
[1739998047179,137.3,168.4,168.38,0.03]
[1739998047500,163.05495788,168.4,168.38,0.03]
[1739998047687,15.21665788,168.39,168.38,0.03]
[1739998049704,19.81665788,168.4,168.38,0.03]
[1739998050283,25.75485788,168.4,168.38,0.03]
[1739998050483,15.21665788,168.39,168.38,0.03]
[1739998051105,19.81665788,168.4,168.38,0.03]
[1739998052701,14.37303747,168.4,168.38,0.03]
[1739998052904,9.77303747,168.39,168.38,0.03]
[1739998053205,14.37303747,168.4,168.38,0.03]
[1739998055411,9.77303747,168.41,168.38,0.03]
[1739998055607,0.063,168.43,168.38,0.03]
[1739998055913,0.063,168.43,168.4,9.77303747]
[1739998056803,0.063,168.43,168.41,15.25874757]
[1739998057000,0.063,168.43,168.42,33.90839643]
[1739998057610,0.063,168.43,168.42,39.84589643]
[1739998059092,0.063,168.43,168.42,120.54589643]
[1739998060115,0.0001,168.5,168.46,18.64964886]
[1739998060290,0.0001,168.5,168.48,15.25874757]
[1739998061009,0.0001,168.5,168.49,15.25874757]
[1739998061487,0.0001,168.5,168.49,21.19374757]
[1739998061913,0.0001,168.5,168.48,33.90839643]
[1739998062786,0.0001,168.5,168.47,5.9354]
[1739998062787,0.0001,168.5,168.46,6.3057]
[1739998062991,0.0001,168.5,168.46,18.64964886]
[1739998064311,15.25874757,168.49,168.45,100.7]
[1739998064515,15.25884757,168.5,168.45,106.6364]
[1739998064915,0.0001,168.5,168.45,121.89514757]
[1739998066218,15.25884757,168.5,168.45,100.7]
[1739998066519,15.25874757,168.49,168.45,100.7]
[1739998066701,15.25884757,168.5,168.45,100.7]
[1739998068918,0.0001,168.5,168.45,106.6364]
[1739998069521,0.0001,168.5,168.45,121.89514757]
[1739998070118,0.0001,168.5,168.45,41.19514757]
[1739998070824,0.0001,168.5,168.46,33.90839643]
[1739998071325,15.25884757,168.5,168.45,25.9364]
[1739998073015,0.0001,168.5,168.45,25.9364]
[1739998073327,0.0001,168.5,168.45,41.19514757]
[1739998074521,0.0001,168.5,168.49,15.25874757]
[1739998074729,0.0001,168.5,168.48,15.25874757]
[1739998076409,0.0001,168.5,168.47,39.84399643]
[1739998076723,0.0001,168.5,168.46,90.45758277]
[1739998077702,0.0001,168.5,168.46,96.39368277]
[1739998080430,0.0001,168.5,168.49,9.75758277]
[1739998081135,0.0001,168.5,168.49,34.34223163]
[1739998083027,0.0001,168.5,168.49,115.04223163]
[1739998083610,0.0001,168.5,168.49,105.28464886]
[1739998085318,0.0001,168.5,168.49,115.04223163]
[1739998092422,0.0001,168.5,168.49,122.31193163]
[1739998092729,0.063,168.55,168.54,24.58294886]
[1739998093042,0.063,168.55,168.54,115.04053163]
[1739998094647,0.0001,168.55,168.54,116.04053163]
[1739998096522,0.0001,168.55,168.54,115.04053163]
[1739998099249,0.0001,168.55,168.54,116.04053163]
[1739998099452,0.0001,168.55,168.54,156.60696271]
[1739998100444,0.063,168.61,168.59,20.0]
[1739998100639,0.063,168.61,168.59,129.10723163]
[1739998101440,0.063,168.61,168.59,135.03873163]
[1739998102654,0.063,168.61,168.59,140.50042665]
[1739998103041,0.063,168.61,168.59,134.56892665]
[1739998103634,0.063,168.61,168.59,140.50042665]
[1739998104031,0.063,168.61,168.59,125.28114886]
[1739998104226,0.063,168.61,168.59,140.50042665]
[1739998107163,0.0001,168.61,168.6,18.64964886]
[1739998107367,0.0001,168.61,168.6,33.86892665]
[1739998108167,0.0001,168.61,168.6,39.80002665]
[1739998111537,0.0001,168.61,168.6,123.41614334]
[1739998112859,0.0001,168.61,168.6,120.50002665]